[Event "Titled Tuesday Blitz June 13 Late 2023"]
[White "TimGrutter03"]
[Black "Rodriguez, Santiago"]
[BlackFideId "3000591"]
[WhiteElo "2574"]
[BlackElo "2249"]
[Result "1-0"]
[Round "6"]
[TimeControl "180+2"]
[Date "2023.06.13"]
[WhiteClock "0:00:03"]
[BlackClock "0:00:00"]
[Board "75"]

1. d4 {[%clk 0:03:00]}  Nf6 {[%clk 0:02:57]} 2. Nc3 {[%clk 0:02:59]}  d5 {[%clk 0:02:57]} 3. Bf4 {[%clk 0:02:58]}  c6 {[%clk 0:02:57]} 4. e3 {[%clk 0:02:57]}  Bf5 {[%clk 0:02:57]} 5. f3 {[%clk 0:02:54]}  e6 {[%clk 0:02:57]} 6. g4 {[%clk 0:02:54]}  Bg6 {[%clk 0:02:57]} 7. h4 {[%clk 0:02:54]}  h5 {[%clk 0:02:57]} 8. g5 {[%clk 0:02:53]}  Nfd7 {[%clk 0:02:57]} 9. Bd3 {[%clk 0:02:53]}  Bxd3 {[%clk 0:02:54]} 10. Qxd3 {[%clk 0:02:52]}  g6 {[%clk 0:02:53]} 11. O-O-O {[%clk 0:02:50]}  Qa5 {[%clk 0:02:51]} 12. e4 {[%clk 0:02:43]}  Bb4 {[%clk 0:02:47]} 13. Nge2 {[%clk 0:02:43]}  b5 {[%clk 0:02:41]} 14. a3 {[%clk 0:02:30]}  Be7 {[%clk 0:02:37]} 15. Rhe1 {[%clk 0:02:29]}  O-O {[%clk 0:02:29]} 16. exd5 {[%clk 0:02:24]}  cxd5 {[%clk 0:02:26]} 17. Qxb5 {[%clk 0:02:21]}  Qxb5 {[%clk 0:02:19]} 18. Nxb5 {[%clk 0:02:22]}  Nc6 {[%clk 0:02:20]} 19. Nc7 {[%clk 0:01:25]}  Rac8 {[%clk 0:02:17]} 20. Na6 {[%clk 0:01:25]}  Nb6 {[%clk 0:02:11]} 21. Nc5 {[%clk 0:01:14]}  Nxd4 {[%clk 0:02:06]} 22. Nxd4 {[%clk 0:01:06]}  Bxc5 {[%clk 0:02:04]} 23. Nb3 {[%clk 0:00:39]}  Bf2 {[%clk 0:02:02]} 24. Re2 {[%clk 0:00:35]}  Bxh4 {[%clk 0:01:47]} 25. Rh1 {[%clk 0:00:34]}  e5 {[%clk 0:01:44]} 26. Rxe5 {[%clk 0:00:33]}  Bf2 {[%clk 0:01:40]} 27. Re2 {[%clk 0:00:28]}  Rc4 {[%clk 0:01:29]} 28. Bh2 {[%clk 0:00:09]}  Bh4 {[%clk 0:01:26]} 29. Bd6 {[%clk 0:00:07]}  Bxg5+ {[%clk 0:01:25]} 30. Kb1 {[%clk 0:00:04]}  Rd8 {[%clk 0:01:25]} 31. Be7 {[%clk 0:00:03]}  Re8 {[%clk 0:01:24]} 32. Rhe1 {[%clk 0:00:03]}  Bxe7 {[%clk 0:01:20]} 33. Rxe7 {[%clk 0:00:04]}  Rxe7 {[%clk 0:01:20]} 34. Rxe7 {[%clk 0:00:05]}  h4 {[%clk 0:01:20]} 35. Nd2 {[%clk 0:00:02]}  Rf4 {[%clk 0:01:17]} 36. b3 {[%clk 0:00:02]}  h3 {[%clk 0:01:17]} 37. Re2 {[%clk 0:00:02]}  Rh4 {[%clk 0:01:09]} 38. Rh2 {[%clk 0:00:02]}  Nd7 {[%clk 0:01:09]} 39. Kc1 {[%clk 0:00:02]}  Ne5 {[%clk 0:01:09]} 40. Kd1 {[%clk 0:00:02]}  Kf8 {[%clk 0:01:08]} 41. Ke2 {[%clk 0:00:03]}  Ke7 {[%clk 0:01:09]} 42. Kf2 {[%clk 0:00:03]}  Kd6 {[%clk 0:01:08]} 43. Kg3 {[%clk 0:00:03]}  g5 {[%clk 0:01:09]} 44. Rxh3 {[%clk 0:00:02]}  Rxh3+ {[%clk 0:01:08]} 45. Kxh3 {[%clk 0:00:03]}  f5 {[%clk 0:01:08]} 46. Kg3 {[%clk 0:00:04]}  f4+ {[%clk 0:01:03]} 47. Kf2 {[%clk 0:00:04]}  Kc5 {[%clk 0:01:03]} 48. Ke2 {[%clk 0:00:04]}  Kd4 {[%clk 0:01:03]} 49. Nb1 {[%clk 0:00:02]}  a5 {[%clk 0:01:02]} 50. c3+ {[%clk 0:00:03]}  Kc5 {[%clk 0:01:02]} 51. Nd2 {[%clk 0:00:03]}  a4 {[%clk 0:01:01]} 52. bxa4 {[%clk 0:00:02]}  Nc4 {[%clk 0:00:59]} 53. Nb3+ {[%clk 0:00:01]}  Kd6 {[%clk 0:00:56]} 54. Kd3 {[%clk 0:00:01]}  Nxa3 {[%clk 0:00:54]} 55. a5 {[%clk 0:00:01]}  Nb5 {[%clk 0:00:54]} 56. c4 {[%clk 0:00:02]}  dxc4+ {[%clk 0:00:53]} 57. Kxc4 {[%clk 0:00:03]}  Nc7 {[%clk 0:00:53]} 58. Nd2 {[%clk 0:00:02]}  Ke5 {[%clk 0:00:53]} 59. Kc5 {[%clk 0:00:02]}  Kf5 {[%clk 0:00:45]} 60. Kb6 {[%clk 0:00:01]}  Nd5+ {[%clk 0:00:45]} 61. Kc5 {[%clk 0:00:01]}  Nc7 {[%clk 0:00:45]} 62. Kc6 {[%clk 0:00:02]}  Na6 {[%clk 0:00:44]} 63. Kb5 {[%clk 0:00:02]}  Nb8 {[%clk 0:00:44]} 64. Kb6 {[%clk 0:00:02]}  g4 {[%clk 0:00:39]} 65. fxg4+ {[%clk 0:00:03]}  Kxg4 {[%clk 0:00:40]} 66. Kb7 {[%clk 0:00:04]}  Nd7 {[%clk 0:00:39]} 67. Ne4 {[%clk 0:00:02]}  f3 {[%clk 0:00:36]} 68. Kc7 {[%clk 0:00:01]}  Nc5 {[%clk 0:00:29]} 69. Nd2 {[%clk 0:00:01]}  f2 {[%clk 0:00:28]} 70. Kb6 {[%clk 0:00:01]}  Nb3 {[%clk 0:00:28]} 71. Nf1 {[%clk 0:00:01]}  Kf3 {[%clk 0:00:20]} 72. a6 {[%clk 0:00:01]}  Kg2 {[%clk 0:00:20]} 73. a7 {[%clk 0:00:01]}  Kxf1 {[%clk 0:00:20]} 74. a8=Q {[%clk 0:00:02]}  Kg1 {[%clk 0:00:17]} 75. Qg8+ {[%clk 0:00:02]}  Kh2 {[%clk 0:00:16]} 76. Qh7+ {[%clk 0:00:02]}  Kg1 {[%clk 0:00:17]} 77. Qg6+ {[%clk 0:00:03]}  Kh1 {[%clk 0:00:16]} 78. Qh5+ {[%clk 0:00:03]}  Kg1 {[%clk 0:00:16]} 79. Qg4+ {[%clk 0:00:04]}  Kf1 {[%clk 0:00:15]} 80. Kb5 {[%clk 0:00:03]}  Nd2 {[%clk 0:00:13]} 81. Kb4 {[%clk 0:00:03]}  Ke1 {[%clk 0:00:12]} 82. Qe6+ {[%clk 0:00:03]}  Kd1 {[%clk 0:00:09]} 83. Qg4+ {[%clk 0:00:03]}  Kc2 {[%clk 0:00:00]} 84. Qf5+ {[%clk 0:00:03]} 1-0


[Site "https://www.chess.com"]

[Event "Titled Tuesday Blitz June 13 Late 2023"]
[White "FuenfgegenWilly"]
[Black "Mortazavi, Ali"]
[BlackFideId "401323"]
[WhiteElo "2413"]
[BlackElo "2339"]
[Result "0-1"]
[Round "6"]
[TimeControl "180+2"]
[Date "2023.06.13"]
[WhiteClock "0:00:05"]
[BlackClock "0:00:39"]
[Board "76"]

1. d4 {[%clk 0:02:58]}  Nf6 {[%clk 0:02:59]} 2. c4 {[%clk 0:02:56]}  g6 {[%clk 0:02:59]} 3. Nc3 {[%clk 0:02:56]}  Bg7 {[%clk 0:03:00]} 4. e4 {[%clk 0:02:54]}  O-O {[%clk 0:03:01]} 5. Nf3 {[%clk 0:02:53]}  d6 {[%clk 0:03:02]} 6. Be2 {[%clk 0:02:53]}  Bg4 {[%clk 0:03:02]} 7. Be3 {[%clk 0:02:48]}  Nbd7 {[%clk 0:03:03]} 8. O-O {[%clk 0:02:44]}  e5 {[%clk 0:03:04]} 9. dxe5 {[%clk 0:02:43]}  dxe5 {[%clk 0:03:03]} 10. Qc2 {[%clk 0:02:39]}  Bxf3 {[%clk 0:03:03]} 11. Bxf3 {[%clk 0:02:39]}  c6 {[%clk 0:03:04]} 12. Rfd1 {[%clk 0:02:38]}  Qe7 {[%clk 0:03:05]} 13. a3 {[%clk 0:02:33]}  Nc5 {[%clk 0:02:59]} 14. b4 {[%clk 0:02:29]}  Ne6 {[%clk 0:02:59]} 15. Ne2 {[%clk 0:02:26]}  h5 {[%clk 0:02:47]} 16. Rd2 {[%clk 0:02:12]}  a5 {[%clk 0:02:45]} 17. Rb1 {[%clk 0:02:03]}  axb4 {[%clk 0:02:43]} 18. axb4 {[%clk 0:02:04]}  Rfd8 {[%clk 0:02:41]} 19. c5 {[%clk 0:01:57]}  Ne8 {[%clk 0:02:24]} 20. Rxd8 {[%clk 0:01:45]}  Rxd8 {[%clk 0:02:23]} 21. Nc1 {[%clk 0:01:30]}  N8c7 {[%clk 0:02:19]} 22. Nd3 {[%clk 0:01:27]}  Nb5 {[%clk 0:02:17]} 23. Qc4 {[%clk 0:01:13]}  Na3 {[%clk 0:02:13]} 24. Qb3 {[%clk 0:01:05]}  Nxb1 {[%clk 0:02:14]} 25. Qxb1 {[%clk 0:01:06]}  Qd7 {[%clk 0:02:12]} 26. Be2 {[%clk 0:01:05]}  Nd4 {[%clk 0:02:09]} 27. Bf1 {[%clk 0:01:06]}  Nb5 {[%clk 0:02:09]} 28. h4 {[%clk 0:01:04]}  Nc3 {[%clk 0:02:00]} 29. Qc2 {[%clk 0:01:01]}  Nxe4 {[%clk 0:01:57]} 30. Nxe5 {[%clk 0:01:02]}  Bxe5 {[%clk 0:01:42]} 31. Qxe4 {[%clk 0:01:01]}  Qd5 {[%clk 0:01:41]} 32. Qc2 {[%clk 0:00:58]}  Bf6 {[%clk 0:01:31]} 33. g3 {[%clk 0:00:57]}  Kg7 {[%clk 0:01:30]} 34. Bf4 {[%clk 0:00:42]}  Qd1 {[%clk 0:01:24]} 35. Qc4 {[%clk 0:00:42]}  Rd4 {[%clk 0:01:18]} 36. Qa2 {[%clk 0:00:41]}  Rxb4 {[%clk 0:01:14]} 37. Bd6 {[%clk 0:00:39]}  Bd4 {[%clk 0:00:59]} 38. Qa8 {[%clk 0:00:18]}  Qf3 {[%clk 0:00:40]} 39. Qf8+ {[%clk 0:00:16]}  Kh7 {[%clk 0:00:40]} 40. Bf4 {[%clk 0:00:06]}  Qxf2+ {[%clk 0:00:39]} 41. Kh1 {[%clk 0:00:05]}  Qg1# {[%clk 0:00:39]} 0-1


[Site "https://www.chess.com"]

[Event "Titled Tuesday Blitz June 13 Late 2023"]
[White "Fernandez Siles, Luis"]
[Black "Bayo Milagro, Alvaro"]
[WhiteFideId "2209420"]
[BlackFideId "22275240"]
[WhiteElo "2195"]
[BlackElo "2270"]
[Result "0-1"]
[Round "6"]
[TimeControl "180+2"]
[Date "2023.06.13"]
[WhiteClock "0:00:44"]
[BlackClock "0:00:30"]
[Board "77"]

1. d4 {[%clk 0:03:00]}  Nf6 {[%clk 0:02:59]} 2. c4 {[%clk 0:03:00]}  e6 {[%clk 0:03:00]} 3. Nf3 {[%clk 0:03:01]}  d5 {[%clk 0:02:59]} 4. Nc3 {[%clk 0:03:00]}  Bb4 {[%clk 0:02:59]} 5. Bg5 {[%clk 0:02:57]}  h6 {[%clk 0:02:59]} 6. Bxf6 {[%clk 0:02:57]}  Qxf6 {[%clk 0:02:59]} 7. Qa4+ {[%clk 0:02:57]}  Nc6 {[%clk 0:02:59]} 8. e3 {[%clk 0:02:55]}  O-O {[%clk 0:02:59]} 9. Be2 {[%clk 0:02:48]}  a6 {[%clk 0:02:56]} 10. cxd5 {[%clk 0:02:38]}  exd5 {[%clk 0:02:56]} 11. O-O {[%clk 0:02:36]}  Be6 {[%clk 0:02:54]} 12. Rac1 {[%clk 0:02:30]}  Bd6 {[%clk 0:02:51]} 13. e4 {[%clk 0:02:18]}  dxe4 {[%clk 0:02:03]} 14. Nxe4 {[%clk 0:02:17]}  Qe7 {[%clk 0:01:54]} 15. Nxd6 {[%clk 0:02:03]}  Qxd6 {[%clk 0:01:54]} 16. Rfd1 {[%clk 0:02:03]}  Bd5 {[%clk 0:01:50]} 17. a3 {[%clk 0:01:25]}  Rfe8 {[%clk 0:01:37]} 18. Re1 {[%clk 0:01:16]}  Rad8 {[%clk 0:01:12]} 19. Qd1 {[%clk 0:01:14]}  Bxf3 {[%clk 0:00:52]} 20. Bxf3 {[%clk 0:01:14]}  Nxd4 {[%clk 0:00:50]} 21. Bxb7 {[%clk 0:01:01]}  Ne2+ {[%clk 0:00:34]} 22. Kh1 {[%clk 0:00:47]}  Nxc1 {[%clk 0:00:33]} 23. Qxc1 {[%clk 0:00:46]}  Rxe1+ {[%clk 0:00:31]} 24. Qxe1 {[%clk 0:00:44]}  Qd1 {[%clk 0:00:30]} 0-1


[Site "https://www.chess.com"]

[Event "Titled Tuesday Blitz June 13 Late 2023"]
[White "Novikov, Evgenij"]
[Black "Zomorrodian, Eilia"]
[WhiteFideId "4125380"]
[BlackFideId "12551805"]
[WhiteElo "2242"]
[BlackElo "2069"]
[Result "1/2-1/2"]
[Round "6"]
[TimeControl "180+2"]
[Date "2023.06.13"]
[WhiteClock "0:00:07"]
[BlackClock "0:00:11"]
[Board "78"]

1. d4 {[%clk 0:03:00]}  Nf6 {[%clk 0:02:56]} 2. c4 {[%clk 0:03:01]}  g6 {[%clk 0:02:56]} 3. Nc3 {[%clk 0:03:01]}  Bg7 {[%clk 0:02:56]} 4. e4 {[%clk 0:03:01]}  O-O {[%clk 0:02:57]} 5. Be2 {[%clk 0:03:02]}  d6 {[%clk 0:02:57]} 6. Nf3 {[%clk 0:03:02]}  c5 {[%clk 0:02:58]} 7. d5 {[%clk 0:02:58]}  e6 {[%clk 0:02:56]} 8. O-O {[%clk 0:02:57]}  exd5 {[%clk 0:02:55]} 9. exd5 {[%clk 0:02:58]}  Re8 {[%clk 0:02:53]} 10. h3 {[%clk 0:02:58]}  Bf5 {[%clk 0:02:50]} 11. Bd3 {[%clk 0:02:55]}  Bxd3 {[%clk 0:02:49]} 12. Qxd3 {[%clk 0:02:55]}  Nbd7 {[%clk 0:02:50]} 13. Bf4 {[%clk 0:02:52]}  Ne5 {[%clk 0:02:49]} 14. Bxe5 {[%clk 0:02:43]}  dxe5 {[%clk 0:02:50]} 15. Nd2 {[%clk 0:02:43]}  Nd7 {[%clk 0:02:47]} 16. f4 {[%clk 0:02:29]}  f5 {[%clk 0:02:44]} 17. fxe5 {[%clk 0:02:20]}  Nxe5 {[%clk 0:02:45]} 18. Qg3 {[%clk 0:02:18]}  Qb6 {[%clk 0:02:33]} 19. b3 {[%clk 0:02:04]}  Re7 {[%clk 0:02:15]} 20. Rae1 {[%clk 0:01:54]}  Rae8 {[%clk 0:02:14]} 21. Kh1 {[%clk 0:01:52]}  Nf7 {[%clk 0:02:12]} 22. Nd1 {[%clk 0:01:30]}  Nd6 {[%clk 0:02:00]} 23. Rxe7 {[%clk 0:01:26]}  Rxe7 {[%clk 0:02:00]} 24. Re1 {[%clk 0:01:27]}  Qd8 {[%clk 0:02:00]} 25. Rxe7 {[%clk 0:01:24]}  Qxe7 {[%clk 0:02:01]} 26. Qe3 {[%clk 0:01:24]}  Qxe3 {[%clk 0:01:56]} 27. Nxe3 {[%clk 0:01:25]}  Bd4 {[%clk 0:01:44]} 28. Nc2 {[%clk 0:01:17]}  Bc3 {[%clk 0:01:35]} 29. Nb1 {[%clk 0:01:14]}  Bb2 {[%clk 0:01:27]} 30. Kg1 {[%clk 0:01:12]}  Kf7 {[%clk 0:01:25]} 31. Kf2 {[%clk 0:01:10]}  Kf6 {[%clk 0:01:25]} 32. Nd2 {[%clk 0:01:06]}  g5 {[%clk 0:01:20]} 33. g4 {[%clk 0:01:00]}  f4 {[%clk 0:01:17]} 34. Kf3 {[%clk 0:00:59]}  Ke5 {[%clk 0:01:11]} 35. Ne1 {[%clk 0:00:55]}  Kd4 {[%clk 0:01:10]} 36. Ke2 {[%clk 0:00:45]}  h6 {[%clk 0:00:57]} 37. Nef3+ {[%clk 0:00:36]}  Kc3 {[%clk 0:00:58]} 38. Ne5 {[%clk 0:00:37]}  Bc1 {[%clk 0:00:46]} 39. Ndf3 {[%clk 0:00:34]}  Kb2 {[%clk 0:00:46]} 40. Nd3+ {[%clk 0:00:33]}  Kb1 {[%clk 0:00:44]} 41. Nxc5 {[%clk 0:00:32]}  b6 {[%clk 0:00:39]} 42. Nd3 {[%clk 0:00:31]}  Be3 {[%clk 0:00:39]} 43. h4 {[%clk 0:00:23]}  gxh4 {[%clk 0:00:32]} 44. Nxh4 {[%clk 0:00:24]}  Kxa2 {[%clk 0:00:32]} 45. Nf5 {[%clk 0:00:24]}  Nf7 {[%clk 0:00:29]} 46. b4 {[%clk 0:00:22]}  Kb3 {[%clk 0:00:26]} 47. c5 {[%clk 0:00:22]}  bxc5 {[%clk 0:00:26]} 48. bxc5 {[%clk 0:00:23]}  Bxc5 {[%clk 0:00:22]} 49. Nxc5+ {[%clk 0:00:22]}  Kc4 {[%clk 0:00:23]} 50. Ne6 {[%clk 0:00:16]}  Kxd5 {[%clk 0:00:21]} 51. Nxf4+ {[%clk 0:00:17]}  Ke5 {[%clk 0:00:20]} 52. Ke3 {[%clk 0:00:15]}  a5 {[%clk 0:00:15]} 53. Nd3+ {[%clk 0:00:13]}  Kf6 {[%clk 0:00:15]} 54. Kf4 {[%clk 0:00:11]}  a4 {[%clk 0:00:15]} 55. Nc5 {[%clk 0:00:09]}  a3 {[%clk 0:00:15]} 56. Ne4+ {[%clk 0:00:09]}  Kg6 {[%clk 0:00:13]} 57. Ne7+ {[%clk 0:00:07]}  Kg7 {[%clk 0:00:14]} 58. Nc3 {[%clk 0:00:06]}  Nd6 {[%clk 0:00:12]} 59. Nf5+ {[%clk 0:00:06]}  Nxf5 {[%clk 0:00:11]} 60. Kxf5 {[%clk 0:00:07]}  Kh7 {[%clk 0:00:10]} 61. Kf6 {[%clk 0:00:06]}  h5 {[%clk 0:00:08]} 62. g5 {[%clk 0:00:05]}  Kg8 {[%clk 0:00:06]} 63. Kf5 {[%clk 0:00:02]}  Kg7 {[%clk 0:00:05]} 64. Kf4 {[%clk 0:00:01]}  Kg6 {[%clk 0:00:05]} 65. Na2 {[%clk 0:00:02]}  h4 {[%clk 0:00:04]} 66. Kg4 {[%clk 0:00:02]}  h3 {[%clk 0:00:05]} 67. Kxh3 {[%clk 0:00:03]}  Kxg5 {[%clk 0:00:06]} 68. Kg3 {[%clk 0:00:04]}  Kf5 {[%clk 0:00:07]} 69. Kf3 {[%clk 0:00:04]}  Ke5 {[%clk 0:00:08]} 70. Ke3 {[%clk 0:00:05]}  Kd5 {[%clk 0:00:08]} 71. Kd3 {[%clk 0:00:05]}  Kc5 {[%clk 0:00:09]} 72. Kc3 {[%clk 0:00:06]}  Kb5 {[%clk 0:00:10]} 73. Kb3 {[%clk 0:00:07]}  Ka5 {[%clk 0:00:11]} 74. Kxa3 {[%clk 0:00:07]} 1/2-1/2


[Site "https://www.chess.com"]

[Event "Titled Tuesday Blitz June 13 Late 2023"]
[White "Ibarra Jerez, Jose Carlos"]
[Black "Avalos Parra, Joao"]
[WhiteFideId "2226332"]
[BlackFideId "3402541"]
[WhiteElo "2631"]
[BlackElo "2173"]
[Result "1-0"]
[Round "6"]
[TimeControl "180+2"]
[Date "2023.06.13"]
[WhiteClock "0:01:19"]
[BlackClock "0:00:38"]
[Board "79"]

1. e4 {[%clk 0:02:46]}  e5 {[%clk 0:02:57]} 2. Nf3 {[%clk 0:02:40]}  Nc6 {[%clk 0:02:58]} 3. Bb5 {[%clk 0:02:38]}  a6 {[%clk 0:02:58]} 4. Bxc6 {[%clk 0:02:39]}  dxc6 {[%clk 0:02:57]} 5. O-O {[%clk 0:02:40]}  Bd6 {[%clk 0:02:55]} 6. d4 {[%clk 0:02:40]}  exd4 {[%clk 0:02:49]} 7. Qxd4 {[%clk 0:02:40]}  f6 {[%clk 0:02:49]} 8. Be3 {[%clk 0:02:41]}  Ne7 {[%clk 0:02:23]} 9. Nbd2 {[%clk 0:02:41]}  Be6 {[%clk 0:02:22]} 10. Qc3 {[%clk 0:02:38]}  O-O {[%clk 0:02:08]} 11. Nc4 {[%clk 0:02:38]}  Qe8 {[%clk 0:01:59]} 12. Rad1 {[%clk 0:02:37]}  Bxc4 {[%clk 0:01:57]} 13. Qxc4+ {[%clk 0:02:37]}  Qf7 {[%clk 0:01:58]} 14. Qxf7+ {[%clk 0:02:22]}  Kxf7 {[%clk 0:01:54]} 15. Nd2 {[%clk 0:02:23]}  Rad8 {[%clk 0:01:51]} 16. Nc4 {[%clk 0:02:23]}  Ng6 {[%clk 0:01:50]} 17. Rd3 {[%clk 0:02:10]}  Ne5 {[%clk 0:01:40]} 18. Nxe5+ {[%clk 0:02:08]}  Bxe5 {[%clk 0:01:39]} 19. Rfd1 {[%clk 0:02:07]}  Rxd3 {[%clk 0:01:30]} 20. Rxd3 {[%clk 0:02:07]}  Ke7 {[%clk 0:01:25]} 21. f4 {[%clk 0:02:05]}  Bd6 {[%clk 0:01:23]} 22. Kf2 {[%clk 0:02:04]}  Rd8 {[%clk 0:01:22]} 23. Kf3 {[%clk 0:02:03]}  c5 {[%clk 0:01:17]} 24. c4 {[%clk 0:01:56]}  Ke6 {[%clk 0:01:14]} 25. Bxc5 {[%clk 0:01:52]}  b6 {[%clk 0:01:04]} 26. Be3 {[%clk 0:01:44]}  g6 {[%clk 0:00:58]} 27. g4 {[%clk 0:01:39]}  h5 {[%clk 0:00:57]} 28. f5+ {[%clk 0:01:35]}  gxf5 {[%clk 0:00:57]} 29. gxf5+ {[%clk 0:01:29]}  Ke7 {[%clk 0:00:58]} 30. Bf4 {[%clk 0:01:27]}  Rg8 {[%clk 0:00:54]} 31. Bxd6+ {[%clk 0:01:26]}  cxd6 {[%clk 0:00:55]} 32. Rb3 {[%clk 0:01:27]}  Rc8 {[%clk 0:00:49]} 33. Rxb6 {[%clk 0:01:24]}  Rxc4 {[%clk 0:00:49]} 34. Rxa6 {[%clk 0:01:22]}  Rc2 {[%clk 0:00:49]} 35. Ra7+ {[%clk 0:01:22]}  Kf8 {[%clk 0:00:48]} 36. Rb7 {[%clk 0:01:20]}  Rxh2 {[%clk 0:00:48]} 37. a4 {[%clk 0:01:20]}  h4 {[%clk 0:00:44]} 38. a5 {[%clk 0:01:19]}  Rh1 {[%clk 0:00:44]} 39. a6 {[%clk 0:01:19]}  Ra1 {[%clk 0:00:38]} 40. a7 {[%clk 0:01:19]} 1-0


[Site "https://www.chess.com"]

[Event "Titled Tuesday Blitz June 13 Late 2023"]
[White "Vakhlamov, Igor L."]
[Black "Bernado Lopez, Roger"]
[WhiteFideId "24126748"]
[BlackFideId "24585009"]
[WhiteElo "2407"]
[BlackElo "2097"]
[Result "1-0"]
[Round "6"]
[TimeControl "180+2"]
[Date "2023.06.13"]
[WhiteClock "0:01:39"]
[BlackClock "0:00:24"]
[Board "80"]

1. e4 {[%clk 0:03:00]}  e5 {[%clk 0:02:59]} 2. Nf3 {[%clk 0:03:00]}  Nc6 {[%clk 0:02:59]} 3. Nc3 {[%clk 0:03:01]}  Nf6 {[%clk 0:02:59]} 4. Bb5 {[%clk 0:03:02]}  Bd6 {[%clk 0:02:56]} 5. a3 {[%clk 0:03:01]}  O-O {[%clk 0:02:55]} 6. d3 {[%clk 0:03:01]}  Re8 {[%clk 0:02:56]} 7. Bc4 {[%clk 0:03:01]}  h6 {[%clk 0:02:54]} 8. g4 {[%clk 0:03:01]}  Nxg4 {[%clk 0:02:44]} 9. Rg1 {[%clk 0:03:01]}  Nf6 {[%clk 0:02:11]} 10. Bxh6 {[%clk 0:03:01]}  Bf8 {[%clk 0:02:12]} 11. Ng5 {[%clk 0:02:56]}  d5 {[%clk 0:02:06]} 12. Nxd5 {[%clk 0:02:50]}  Be6 {[%clk 0:01:52]} 13. Nxe6 {[%clk 0:02:48]}  fxe6 {[%clk 0:01:40]} 14. Bg5 {[%clk 0:01:53]}  exd5 {[%clk 0:01:25]} 15. Bxd5+ {[%clk 0:01:54]}  Kh7 {[%clk 0:00:24]} 16. Qf3 {[%clk 0:01:39]} 1-0


[Site "https://www.chess.com"]

[Event "Titled Tuesday Blitz June 13 Late 2023"]
[White "Makridis, Dimitrios"]
[Black "Petersson, Kjell"]
[WhiteFideId "25864475"]
[BlackFideId "1705148"]
[WhiteElo "2277"]
[BlackElo "2005"]
[Result "1-0"]
[Round "6"]
[TimeControl "180+2"]
[Date "2023.06.13"]
[WhiteClock "0:01:26"]
[BlackClock "0:00:26"]
[Board "81"]

1. d4 {[%clk 0:02:56]}  f5 {[%clk 0:02:59]} 2. e4 {[%clk 0:02:51]}  fxe4 {[%clk 0:02:59]} 3. f3 {[%clk 0:02:51]}  d5 {[%clk 0:02:53]} 4. fxe4 {[%clk 0:02:50]}  dxe4 {[%clk 0:02:45]} 5. Nc3 {[%clk 0:02:48]}  Nf6 {[%clk 0:02:43]} 6. Nge2 {[%clk 0:02:47]}  Bg4 {[%clk 0:02:33]} 7. h3 {[%clk 0:02:47]}  Bh5 {[%clk 0:02:33]} 8. g4 {[%clk 0:02:46]}  Bg6 {[%clk 0:02:33]} 9. Bg2 {[%clk 0:02:46]}  e6 {[%clk 0:02:07]} 10. Nf4 {[%clk 0:02:44]}  Bf7 {[%clk 0:01:58]} 11. g5 {[%clk 0:02:38]}  Nd5 {[%clk 0:01:54]} 12. O-O {[%clk 0:02:39]}  Bb4 {[%clk 0:01:33]} 13. Nxe4 {[%clk 0:02:33]}  O-O {[%clk 0:01:34]} 14. c3 {[%clk 0:02:33]}  Bd6 {[%clk 0:01:33]} 15. Nxd6 {[%clk 0:02:31]}  cxd6 {[%clk 0:01:26]} 16. Nxd5 {[%clk 0:02:31]}  exd5 {[%clk 0:01:26]} 17. Bf4 {[%clk 0:02:30]}  Nc6 {[%clk 0:01:25]} 18. Qg4 {[%clk 0:02:27]}  Ne7 {[%clk 0:01:23]} 19. Rae1 {[%clk 0:02:25]}  Ng6 {[%clk 0:01:16]} 20. Bg3 {[%clk 0:02:24]}  Qc8 {[%clk 0:01:12]} 21. Qxc8 {[%clk 0:02:21]}  Raxc8 {[%clk 0:01:12]} 22. Rxf7 {[%clk 0:02:22]}  Rxf7 {[%clk 0:01:10]} 23. Bxd5 {[%clk 0:02:20]}  Rf8 {[%clk 0:01:04]} 24. Bxd6 {[%clk 0:02:19]}  h6 {[%clk 0:00:29]} 25. Bxf8 {[%clk 0:02:13]}  Kxf8 {[%clk 0:00:26]} 26. Bxf7 {[%clk 0:02:11]}  Kxf7 {[%clk 0:00:25]} 27. gxh6 {[%clk 0:02:09]}  gxh6 {[%clk 0:00:26]} 28. Re4 {[%clk 0:02:07]}  Kf6 {[%clk 0:00:25]} 29. Kg2 {[%clk 0:01:26]}  Kf5 {[%clk 0:00:26]} 1-0


[Site "https://www.chess.com"]

[Event "Titled Tuesday Blitz June 13 Late 2023"]
[White "Baches Garcia, Guillermo"]
[Black "Kavutskiy, Konstantin"]
[WhiteFideId "2209764"]
[BlackFideId "2026384"]
[WhiteElo "2479"]
[BlackElo "2323"]
[Result "0-1"]
[Round "6"]
[TimeControl "180+2"]
[Date "2023.06.13"]
[WhiteClock "0:00:19"]
[BlackClock "0:00:15"]
[Board "83"]

1. e4 {[%clk 0:03:00]}  c5 {[%clk 0:02:59]} 2. Nf3 {[%clk 0:03:01]}  Nc6 {[%clk 0:02:59]} 3. d4 {[%clk 0:03:01]}  cxd4 {[%clk 0:02:59]} 4. Nxd4 {[%clk 0:03:01]}  Nf6 {[%clk 0:02:59]} 5. Nc3 {[%clk 0:03:01]}  e5 {[%clk 0:02:59]} 6. Ndb5 {[%clk 0:03:01]}  d6 {[%clk 0:02:59]} 7. Nd5 {[%clk 0:03:02]}  Nxd5 {[%clk 0:02:58]} 8. exd5 {[%clk 0:03:03]}  Ne7 {[%clk 0:02:56]} 9. c4 {[%clk 0:03:02]}  Ng6 {[%clk 0:02:53]} 10. Qa4 {[%clk 0:03:01]}  Bd7 {[%clk 0:02:51]} 11. Qb4 {[%clk 0:03:01]}  Qb8 {[%clk 0:02:51]} 12. Be3 {[%clk 0:02:59]}  Be7 {[%clk 0:02:40]} 13. Be2 {[%clk 0:02:57]}  O-O {[%clk 0:02:39]} 14. O-O {[%clk 0:02:53]}  a6 {[%clk 0:02:37]} 15. Nc3 {[%clk 0:02:48]}  f5 {[%clk 0:02:37]} 16. Bb6 {[%clk 0:02:32]}  Nf4 {[%clk 0:02:33]} 17. Rfe1 {[%clk 0:02:29]}  Qe8 {[%clk 0:02:29]} 18. Bf1 {[%clk 0:02:24]}  Qg6 {[%clk 0:02:25]} 19. Kh1 {[%clk 0:02:24]}  Rac8 {[%clk 0:02:13]} 20. Be3 {[%clk 0:02:15]}  Nxg2 {[%clk 0:00:58]} 21. Bxg2 {[%clk 0:02:07]}  f4 {[%clk 0:00:59]} 22. Be4 {[%clk 0:01:58]}  Qh5 {[%clk 0:00:57]} 23. Bb6 {[%clk 0:01:45]}  f3 {[%clk 0:00:50]} 24. Rg1 {[%clk 0:01:36]}  Rf4 {[%clk 0:00:43]} 25. Rg3 {[%clk 0:01:27]}  Rh4 {[%clk 0:00:33]} 26. Bxf3 {[%clk 0:01:20]}  Rxh2+ {[%clk 0:00:32]} 27. Kg1 {[%clk 0:01:20]}  Qh6 {[%clk 0:00:23]} 28. Be3 {[%clk 0:01:16]}  Qh4 {[%clk 0:00:21]} 29. Qxb7 {[%clk 0:01:03]}  Rf8 {[%clk 0:00:21]} 30. Qxd7 {[%clk 0:00:48]}  Rxf3 {[%clk 0:00:20]} 31. Qe6+ {[%clk 0:00:43]}  Rf7 {[%clk 0:00:19]} 32. Qc8+ {[%clk 0:00:22]}  Bf8 {[%clk 0:00:18]} 33. Rd1 {[%clk 0:00:19]}  Rh1+ {[%clk 0:00:15]} 34. Kg2 {[%clk 0:00:19]}  Qh2# {[%clk 0:00:15]} 0-1


[Site "https://www.chess.com"]